bitfinex-derivatives/quotes_SOLF0:USTF0_20241212
["timestamp","ask_amount","ask_price","bid_price","bid_amount"]
[1733994971934,8.07521182,232.7,232.65,2.1483]
[1733994972234,8.07521182,232.7,232.63,8.07521182]
[1733994972235,1.9,232.69,232.63,8.07521182]
[1733994972738,2.1481,232.68,232.64,2.1484]
[1733994973137,2.1481,232.68,232.63,8.07521182]
[1733994973937,2.1481,232.68,232.61,8.07521182]
[1733994974939,2.1482,232.67,232.63,2.1485]
[1733994975137,2.1482,232.67,232.61,8.07521182]
[1733994977039,2.1483,232.66,232.62,2.1486]
[1733994977230,8.07521182,232.68,232.62,2.1486]
[1733994977435,8.07521182,232.68,232.6,8.07521182]
[1733994977436,1.9,232.69,232.6,8.07521182]
[1733994977631,8.07521182,232.68,232.6,8.07521182]
[1733994978043,2.1482,232.67,232.63,2.1485]
[1733994978350,2.1482,232.67,232.6,8.07521182]
[1733994978744,2.1482,232.67,232.63,2.1484]
[1733994979938,9.97521182,232.69,232.63,2.1484]
[1733994980142,2.1483,232.66,232.63,2.1484]
[1733994984245,2.1483,232.66,232.62,2.1486]
[1733994984448,2.1484,232.65,232.62,2.1486]
[1733994985647,52.460002,232.75,232.62,8.07521182]
[1733994985950,52.460002,232.75,232.56,1.9]
[1733994985951,9.97521182,232.74,232.66,8.07521182]
[1733994986149,2.1479,232.71,232.67,2.1481]
[1733994986550,9.97521182,232.74,232.67,2.1481]
[1733994986748,2.1479,232.71,232.68,2.1481]
[1733994989045,2.1477,232.72,232.69,2.1479]
[1733994991049,8.07521182,232.81,232.7,8.07521182]
[1733994991256,8.07521182,232.81,232.74,8.07521182]
[1733994991257,9.97521182,232.81,232.74,8.07521182]
[1733994991649,2.1471,232.79,232.76,2.1473]
[1733994992246,2.1471,232.79,232.75,2.1474]
[1733995001754,8.07521182,232.77,232.68,1.9]
[1733995001960,6.96077976,232.81,232.68,8.07521182]
[1733995001961,8.07521182,232.75,232.68,8.07521182]
[1733995002165,9.97521182,232.75,232.67,91.4223927]
[1733995002365,2.1475,232.74,232.69,2.1479]
[1733995003063,9.97521182,232.75,232.67,91.4223927]
[1733995003260,2.1478,232.71,232.67,91.4223927]
[1733995003759,2.1478,232.71,232.67,83.34718088]
[1733995003961,2.1479,232.7,232.67,85.49538088]
[1733995004161,2.1479,232.7,232.67,83.34718088]
[1733995004356,8.07521182,232.71,232.67,83.34718088]
[1733995004861,2.1481,232.68,232.62,12.17781182]
[1733995005163,8.07521182,232.67,232.62,2.6868]
[1733995005356,2.1483,232.66,232.62,2.1486]
[1733995006656,8.07521182,232.65,232.62,2.1486]
[1733995006864,2.1485,232.64,232.6,2.1487]
[1733995009658,2.1483,232.66,232.62,2.1486]
[1733995009862,10.22351182,232.66,232.62,2.1486]
[1733995012168,2.1483,232.66,232.62,2.1486]
[1733995012866,8.07521182,232.65,232.62,2.1486]
[1733995015669,2.1483,232.66,232.62,2.1486]
[1733995015867,10.22351182,232.66,232.62,2.1486]
[1733995016372,10.22351182,232.66,232.63,2.1485]
[1733995021070,10.22351182,232.66,232.6,8.07521182]
[1733995021272,2.1484,232.65,232.62,2.1486]
[1733995022173,10.22351182,232.66,232.62,2.1486]
[1733995023780,8.07521182,232.68,232.62,8.07521182]
[1733995023980,8.07521182,232.68,232.64,2.1484]
[1733995023981,10.22331182,232.68,232.64,2.1484]
[1733995027778,0.24609,232.78,232.66,8.07521182]
[1733995028080,8.07521182,232.74,232.66,8.07521182]
[1733995028281,9.97521182,232.74,232.66,8.07521182]
[1733995029180,8.07521182,232.72,232.56,5.17794003]
[1733995029377,8.07521182,232.68,232.57,1.9]
[1733995029571,8.07521182,232.68,232.61,8.07521182]
[1733995030380,10.22331182,232.68,232.64,2.1484]
[1733995032380,10.22331182,232.68,232.61,8.07521182]
[1733995032982,1.9,232.69,232.65,8.07521182]
[1733995033182,1.9,232.72,232.65,8.07521182]
[1733995033377,1.88,232.72,232.65,8.07521182]
[1733995033581,9.95521182,232.73,232.65,8.07521182]
[1733995033882,2.1477,232.72,232.65,8.07521182]
[1733995034584,2.1477,232.72,232.69,2.1479]
[1733995035780,4.0276,232.74,232.71,2.1478]
[1733995035985,2.1476,232.74,232.71,2.1478]
[1733995036783,1.88,232.75,232.64,1.4412]
[1733995036784,1.88,232.76,232.74,2.1475]
[1733995036984,1.88,232.79,232.72,8.07521182]
[1733995037382,1.88,232.82,232.74,8.07521182]
[1733995038293,4.0268,232.82,232.74,8.07521182]
[1733995038693,4.0268,232.82,232.78,2.1471]
[1733995040199,2.1469,232.81,232.74,8.07521182]
[1733995041099,2.1469,232.81,232.76,2.1473]
[1733995041300,2.1469,232.81,232.74,8.07521182]
[1733995042103,2.1469,232.81,232.78,2.1471]
[1733995045102,2.1469,232.81,232.77,2.1472]
[1733995046705,2.147,232.8,232.77,2.1472]
[1733995046905,2.147,232.8,232.76,2.1473]
[1733995047402,8.07521182,232.79,232.72,2.1477]
[1733995047599,8.07521182,232.79,232.71,8.07521182]
[1733995048702,2.1473,232.77,232.73,2.1476]
[1733995050406,2.1472,232.78,232.74,2.1475]
[1733995050796,2.1472,232.78,232.72,8.07521182]
[1733995050999,1.88,232.83,232.72,8.07521182]
[1733995051204,8.07521182,232.82,232.74,8.07521182]
[1733995051797,2.1469,232.81,232.74,8.07521182]
[1733995052810,2.1469,232.81,232.76,8.07521182]
[1733995053209,2.1469,232.81,232.78,2.1471]
[1733995054804,8.07521182,232.8,232.72,8.07521182]
[1733995055005,8.07521182,232.8,232.75,2.1473]
[1733995056611,2.1472,232.78,232.75,2.1473]
[1733995060908,2.1471,232.79,232.75,2.1473]
[1733995063622,2.1472,232.78,232.75,2.1473]
[1733995064223,2.1471,232.79,232.75,2.1473]
[1733995064617,8.07521182,232.81,232.75,2.1473]
[1733995064822,8.07521182,232.79,232.69,91.01078527]
[1733995065039,8.07521182,232.79,232.74,2.1475]
[1733995066020,8.07521182,232.77,232.71,2.1478]
[1733995066820,8.07521182,232.75,232.71,2.1478]
[1733995067628,2.1475,232.74,232.71,2.1478]
[1733995072729,2.1476,232.73,232.7,2.1479]
[1733995075135,4.0275,232.74,232.71,2.1478]
[1733995075938,2.1475,232.74,232.71,2.1478]
[1733995077735,2.1476,232.73,232.7,2.1479]
[1733995080833,9.95521182,232.75,232.69,84.05228462]
[1733995081037,2.1475,232.74,232.71,2.1478]
[1733995081538,9.95521182,232.75,232.69,84.05228462]
[1733995082537,2.1477,232.73,232.7,2.1479]
[1733995082940,10.22291182,232.73,232.7,2.1479]
[1733995087344,8.07521182,232.73,232.65,13.16503118]
[1733995087542,8.07521182,232.73,232.63,2.7247]
[1733995087543,8.07521182,232.71,232.63,2.7247]
[1733995087752,8.07521182,232.71,232.63,10.79991182]
[1733995088050,8.07521182,232.71,232.64,5.23700675]
[1733995088450,10.22301182,232.71,232.66,2.1482]
[1733995088650,1.88,232.75,232.65,8.07521182]
[1733995088851,8.07521182,232.72,232.65,8.07521182]
[1733995089549,9.95521182,232.72,232.65,8.07521182]
[1733995089750,12.10291182,232.72,232.69,2.148]
[1733995090346,4.0277,232.72,232.69,2.148]
[1733995090543,12.10291182,232.72,232.69,2.148]
[1733995091649,8.07521182,232.7,232.67,2.1482]
[1733995092555,8.07521182,232.7,232.68,2.148]
[1733995093049,2.1479,232.71,232.68,2.148]
[1733995093352,10.22311182,232.71,232.68,2.148]
[1733995093749,2.1479,232.7,232.63,16.0600597]
[1733995093949,2.1479,232.7,232.64,8.07521182]
[1733995095644,2.1479,232.7,232.67,2.1481]
[1733995097453,2.148,232.69,232.66,2.1483]
[1733995098153,2.1481,232.68,232.65,2.1483]
[1733995099256,8.07521182,232.69,232.65,2.1483]
[1733995099556,10.22321182,232.69,232.65,2.1483]
[1733995100451,2.1479,232.7,232.67,2.1481]
[1733995100662,2.1479,232.7,232.64,8.07521182]
[1733995101354,2.1479,232.7,232.66,2.1482]
[1733995105418,2.1479,232.7,232.67,2.1481]
[1733995108860,2.148,232.69,232.66,2.1482]
[1733995109763,53.83245239,232.77,232.67,8.07521182]
[1733995110068,9.95521182,232.76,232.69,8.07521182]
[1733995110268,2.1475,232.75,232.72,2.1477]
[1733995110470,53.83245239,232.77,232.73,8.07521182]
[1733995110761,1.88,232.8,232.73,8.07521182]
[1733995111156,4.027,232.8,232.73,8.07521182]
[1733995111363,1.88,232.81,232.73,8.07521182]
[1733995111663,10.22211182,232.81,232.73,8.07521182]
[1733995112365,2.147,232.8,232.73,8.07521182]
[1733995113670,2.147,232.8,232.75,2.1473]
[1733995113968,8.07521182,232.77,232.71,2.7302]
[1733995114567,10.22241182,232.77,232.73,2.1476]
[1733995115872,1.88,232.82,232.71,2.7302]
[1733995116066,10.22241182,232.78,232.74,2.1474]
[1733995116860,2.1472,232.78,232.74,2.1474]
[1733995117068,2.1471,232.79,232.75,2.1474]
[1733995123171,2.1472,232.78,232.75,2.1474]
[1733995124575,2.1472,232.77,232.74,2.1475]
[1733995125172,8.07521182,232.8,232.73,2.1475]
[1733995125173,2.1472,232.78,232.73,2.1475]
[1733995125367,8.07521182,232.8,232.73,2.1475]
[1733995125775,8.07521182,232.78,232.73,2.1475]
[1733995126475,2.1474,232.76,232.73,2.1475]
[1733995126671,2.1474,232.76,232.73,2.1476]
[1733995127877,2.1476,232.73,232.7,2.1479]
[1733995128581,2.1475,232.74,232.7,2.1479]
[1733995128771,2.1475,232.74,232.68,83.34473325]
[1733995128970,2.1475,232.74,232.71,2.1478]
[1733995129279,2.1476,232.73,232.68,83.34473325]
[1733995129879,2.1476,232.73,232.7,2.1478]
[1733995131372,8.07521182,232.74,232.68,83.34473325]
[1733995131568,2.1477,232.72,232.69,2.148]
[1733995134183,8.07521182,232.74,232.68,83.34473325]
[1733995134374,2.1476,232.73,232.7,2.1479]
[1733995136384,2.1476,232.73,232.69,2.148]
[1733995140379,10.22281182,232.73,232.69,2.148]
[1733995140581,2.1476,232.73,232.69,2.148]
[1733995140788,10.22281182,232.73,232.69,2.148]
[1733995141280,7.08039968,232.77,232.7,2.1478]
[1733995141484,10.22271182,232.74,232.7,2.1478]
[1733995142387,2.1475,232.74,232.7,2.1478]
[1733995142684,8.07521182,232.78,232.71,8.07521182]
[1733995143480,8.07521182,232.78,232.76,2.1473]
[1733995144886,4.0271,232.79,232.76,2.1473]
[1733995145688,2.1468,232.82,232.78,2.1471]
[1733995145886,1.88,232.81,232.78,2.1471]
[1733995147890,10.22221182,232.8,232.76,2.1473]
[1733995148086,1.88,232.82,232.73,10.75331182]
[1733995148294,8.07521182,232.82,232.73,10.75331182]
[1733995148490,9.95521182,232.82,232.73,10.75331182]
[1733995148991,9.95521182,232.82,232.75,8.07521182]
[1733995149592,12.10201182,232.82,232.78,2.1471]
[1733995151391,10.22201182,232.82,232.78,2.1471]
[1733995152992,53.8093726,232.89,232.77,8.07521182]
[1733995153194,8.07521182,232.84,232.77,8.07521182]
[1733995153791,1.88,232.88,232.79,8.07521182]
[1733995153993,1.88,232.93,232.83,8.07521182]
[1733995154194,8.07521182,232.91,232.83,8.07521182]
[1733995154386,2.146,232.9,232.87,2.1463]
[1733995154589,1.88,232.92,232.87,2.1463]
[1733995154590,8.07521182,232.91,232.87,2.1463]
[1733995154886,1.88,232.92,232.81,2.7824]
[1733995154887,8.07521182,232.89,232.81,2.7824]
[1733995155092,10.22181182,232.84,232.8,2.147]
[1733995156692,2.1466,232.84,232.8,2.147]
[1733995156993,2.1467,232.83,232.8,2.147]
[1733995158098,2.1467,232.83,232.78,2.1471]
[1733995159293,2.1467,232.83,232.71,4.0728]
[1733995159487,2.1467,232.83,232.72,1.88]
[1733995159689,2.1467,232.83,232.75,8.07521182]
[1733995159996,8.07521182,232.84,232.78,2.1471]
[1733995160190,2.1469,232.81,232.73,8.07521182]
[1733995160995,2.1473,232.77,232.71,5.9528]
[1733995161201,8.07521182,232.78,232.71,5.9528]
[1733995161790,10.22241182,232.78,232.73,2.1475]
[1733995162187,8.07521182,232.78,232.73,2.1475]
[1733995163495,8.07521182,232.77,232.73,2.1475]
[1733995163797,8.07521182,232.77,232.71,4.0728]
[1733995163999,1.88,232.81,232.71,2.6981]
[1733995164000,8.07521182,232.75,232.71,2.6981]
[1733995164397,8.07521182,232.75,232.7,2.1479]
[1733995164600,2.1475,232.74,232.7,2.1479]
[1733995166607,10.22281182,232.73,232.69,2.148]
[1733995166907,8.07521182,232.73,232.68,85.17155572]
[1733995167097,9.95521182,232.73,232.68,85.17155572]
[1733995167302,2.1477,232.72,232.68,85.17155572]
[1733995167502,2.1477,232.72,232.67,2.1481]
[1733995168000,8.07521182,232.71,232.65,4.0418]
[1733995168197,2.148,232.69,232.66,2.1482]
[1733995168701,8.07521182,232.71,232.66,2.1482]
[1733995169503,2.1479,232.7,232.66,2.1482]
[1733995171600,8.07521182,232.71,232.67,2.1481]
[1733995171803,1.88,232.73,232.67,8.07521182]
[1733995172104,5.04578004,232.81,232.67,8.07521182]
[1733995172105,1.88,232.76,232.71,8.07521182]
[1733995172299,1.88,232.78,232.75,2.1474]
[1733995172504,1.88,232.78,232.71,8.07521182]
[1733995173415,8.07521182,232.79,232.71,8.07521182]
[1733995173601,1.88,232.8,232.75,8.07521182]
[1733995173807,9.95521182,232.83,232.75,8.07521182]
[1733995174210,12.10191182,232.83,232.79,2.147]
[1733995174510,9.95521182,232.83,232.75,8.07521182]
[1733995175201,8.07521182,232.81,232.73,1.4323]
[1733995175403,8.07521182,232.79,232.72,8.07521182]
[1733995175709,10.22231182,232.79,232.74,2.1474]
[1733995176703,10.22251182,232.77,232.73,2.1476]
[1733995182115,8.07521182,232.8,232.73,8.07521182]
[1733995182315,8.07521182,232.82,232.75,8.07521182]
[1733995182617,10.22201182,232.82,232.77,2.1472]
[1733995183025,4.1373,232.88,232.77,8.07521182]
[1733995183324,10.22191182,232.84,232.77,8.07521182]
[1733995184019,4.0265,232.85,232.81,2.1469]
[1733995185622,12.10171182,232.85,232.81,2.1469]
[1733995186323,2.1467,232.83,232.79,2.147]
[1733995189320,12.10181182,232.85,232.8,2.1469]
[1733995189518,9.95521182,232.85,232.8,2.1469]
[1733995190630,2.1466,232.84,232.8,2.1469]
[1733995190818,1.88,232.88,232.79,8.07521182]
[1733995191021,1.88,232.88,232.66,40.8254985]
[1733995191022,8.07521182,232.8,232.66,40.8254985]
[1733995191320,9.95521182,232.8,232.72,5.17732067]
[1733995191523,8.07521182,232.78,232.69,2.7842]
[1733995191725,2.1475,232.75,232.69,10.85941182]
[1733995191926,4.0275,232.75,232.69,10.85941182]
[1733995192327,4.0275,232.75,232.71,2.1477]
[1733995192922,10.22271182,232.74,232.7,2.1479]
[1733995193124,10.22271182,232.74,232.69,1.4418]
[1733995193326,8.07521182,232.74,232.69,1.4418]
[1733995193526,8.07521182,232.74,232.69,3.5898]
[1733995193527,2.1476,232.73,232.69,3.5898]
[1733995194723,8.07521182,232.74,232.69,3.5898]
[1733995194933,8.07521182,232.7,232.68,2.1481]
[1733995195129,9.95521182,232.7,232.61,8.07521182]
[1733995195427,8.07521182,232.68,232.62,5.25099366]
[1733995196232,8.07521182,232.68,232.64,2.1484]
[1733995198129,8.07521182,232.68,232.6,1.3424]
[1733995198330,8.07521182,232.66,232.58,2.836]
[1733995198631,8.07521182,232.66,232.59,5.26376862]
[1733995198632,1.88,232.65,232.59,5.26376862]
[1733995199131,1.88,232.65,232.61,2.1487]
[1733995200535,2.1487,232.61,232.56,2.1492]
[1733995200836,1.88,232.6,232.53,8.07521182]
[1733995201329,1.88,232.6,232.54,2.15016771]
[1733995201525,8.07521182,232.58,232.54,2.15016771]
[1733995202330,10.22431182,232.58,232.54,2.15016771]
[1733995203934,2.1493,232.55,232.54,2.15016771]
[1733995204334,8.07521182,232.56,232.54,2.15016771]
[1733995204534,10.22441182,232.56,232.54,2.15016771]
[1733995205939,1.88,232.55,232.54,2.15016771]
[1733995206252,4.0293,232.55,232.54,2.15016771]
[1733995208245,1.88,232.55,232.54,0.04556222]
[1733995208546,1.88,232.55,232.43,2.1503]
[1733995208547,9.95521182,232.55,232.43,2.1503]
[1733995208747,8.07521182,232.47,232.43,2.1503]
[1733995208948,9.95521182,232.47,232.43,2.1503]
[1733995209442,9.95521182,232.47,232.44,2.1503]
[1733995209643,1.88,232.47,232.41,8.07521182]
[1733995210445,1.88,232.47,232.42,2.1504]
[1733995210644,1.88,232.47,232.42,5.12516549]
[1733995211347,8.07521182,232.46,232.36,4.1195]
[1733995211547,8.07521182,232.46,232.38,8.07521182]
[1733995212141,1.88,232.47,232.36,4.1195]
[1733995212142,8.07521182,232.44,232.36,4.1195]
[1733995212345,1.88,232.47,232.36,4.1195]
[1733995212346,8.07521182,232.42,232.36,4.1195]
[1733995213046,9.95521182,232.42,232.36,4.1195]
[1733995213241,9.95521182,232.42,232.38,2.1508]
[1733995213654,8.07521182,232.42,232.38,2.1508]
[1733995215558,4.0304,232.43,232.38,2.1508]
[1733995215747,8.07521182,232.42,232.38,2.1508]
[1733995216254,10.22571182,232.42,232.38,2.1508]
[1733995220549,8.07521182,232.42,232.38,2.1508]
[1733995220755,8.07521182,232.4,232.37,2.1509]
[1733995220948,8.07521182,232.4,232.36,2.7931]
[1733995221351,8.07521182,232.4,232.32,8.07521182]
[1733995223154,8.07521182,232.4,232.36,2.151]
[1733995224753,8.07521182,232.4,232.37,2.1509]
[1733995226047,8.07521182,232.38,232.33,2.1513]
[1733995226247,8.07521182,232.36,232.28,93.37799619]
[1733995226650,8.07521182,232.34,232.28,98.53067466]
[1733995226855,8.07521182,232.34,232.26,1.4384]
[1733995227053,8.07521182,232.34,232.26,9.51361182]
[1733995227260,8.07521182,232.34,232.29,2.1517]
[1733995227453,8.07521182,232.32,232.26,1.4384]
[1733995227858,9.95521182,232.32,232.26,1.4384]
[1733995228064,9.95521182,232.32,232.28,2.1518]
[1733995228260,8.07521182,232.29,232.19,6.1226]
[1733995228462,8.07521182,232.27,232.19,6.1226]
[1733995228760,8.07521182,232.31,232.24,8.07521182]
[1733995228958,8.07521182,232.33,232.24,8.07521182]
[1733995229155,1.88,232.31,232.24,8.07521182]
[1733995229355,1.88,232.31,232.29,2.1516]
[1733995229960,2.151,232.37,232.28,8.07521182]
[1733995230159,5.15297559,232.4,232.28,8.07521182]
[1733995230362,1.88,232.39,232.32,8.07521182]
[1733995230563,1.88,232.38,232.32,8.07521182]
[1733995231364,1.88,232.38,232.34,2.1511]
[1733995231756,1.88,232.38,232.3,2.8132]
[1733995231957,1.88,232.38,232.34,2.1512]
[1733995232361,8.07521182,232.37,232.3,2.8132]
[1733995232566,8.07521182,232.37,232.32,2.1514]
[1733995232959,1.88,232.38,232.34,2.1511]
[1733995233161,1.88,232.38,232.31,8.07521182]
[1733995233562,4.2966,232.66,232.37,8.07521182]
[1733995233863,8.07521182,232.45,232.37,8.07521182]
[1733995234060,8.07521182,232.45,232.38,1.88]
[1733995234367,8.07521182,232.45,232.39,2.1507]
[1733995234662,8.07521182,232.45,232.4,2.1506]
[1733995235258,2.1501,232.46,232.4,2.1506]
[1733995236674,12.60255745,232.52,232.37,14.48255745]
[1733995236964,1.88,232.52,232.37,14.48255745]
[1733995237268,2.1497,232.5,232.44,2.1502]
[1733995237660,1.88,232.52,232.4,1.88]
[1733995237661,12.60255745,232.51,232.4,1.88]
[1733995237866,2.1501,232.47,232.4,4.0306]
[1733995238463,2.1501,232.47,232.41,2.1506]
[1733995238963,2.1501,232.46,232.41,2.1506]
[1733995239169,12.60255745,232.51,232.38,1.88]
[1733995239766,2.1501,232.46,232.41,2.1506]
[1733995239966,12.60255745,232.48,232.34,12.60255745]
[1733995240162,1.88,232.47,232.35,1.88]
[1733995240363,2.1503,232.44,232.35,1.88]
[1733995240870,2.1503,232.44,232.36,5.20305254]
[1733995241168,2.1503,232.44,232.36,7.08305254]
[1733995241568,2.1503,232.44,232.39,2.1507]
[1733995243368,2.1502,232.46,232.41,2.1505]
[1733995244067,2.1502,232.46,232.42,2.1505]
[1733995244767,12.60255745,232.48,232.45,2.1502]
[1733995244768,2.1499,232.48,232.45,2.1502]
[1733995244962,2.29602,232.52,232.41,1.9]
[1733995245573,2.1497,232.5,232.41,1.9]
[1733995246068,2.1497,232.5,232.45,2.1501]
[1733995246467,2.1497,232.5,232.41,1.9]
[1733995246670,2.1497,232.5,232.46,2.1501]
[1733995247779,2.1498,232.49,232.46,2.1501]
[1733995248073,12.60255745,232.51,232.43,2.1503]
[1733995248371,12.60255745,232.51,232.41,1.9]
[1733995248372,2.1501,232.47,232.36,5.20305254]
[1733995248678,2.29602,232.52,232.36,5.20305254]
[1733995248679,12.60255745,232.48,232.37,1.9]
[1733995249065,1.9,232.47,232.4,2.1507]
[1733995250671,2.1503,232.44,232.4,2.1507]
[1733995251170,2.1504,232.43,232.4,2.1507]
[1733995251970,2.1503,232.44,232.4,2.1507]
[1733995252971,2.1504,232.43,232.4,2.1507]
[1733995254070,2.1504,232.43,232.38,2.1508]
[1733995254373,2.1505,232.42,232.38,2.1508]
[1733995254973,2.1505,232.42,232.35,7.09523847]
[1733995255173,2.1505,232.42,232.39,2.1507]
[1733995255972,1.9,232.47,232.39,2.1507]
[1733995257278,2.1505,232.43,232.39,2.1507]
[1733995257671,8.0666034,232.44,232.39,2.1507]
[1733995258579,8.0666034,232.42,232.31,1.3098]
[1733995258779,8.0666034,232.39,232.33,8.0666034]
[1733995259083,8.0666034,232.39,232.32,1.9]
[1733995259382,10.2174034,232.39,232.32,1.9]
[1733995259784,10.2174034,232.39,232.31,1.3098]
[1733995259981,10.2174034,232.39,232.31,11.2764034]
[1733995260177,2.151,232.37,232.31,9.3764034]
[1733995260680,8.0666034,232.39,232.31,9.3764034]
[1733995261489,2.1509,232.38,232.34,2.1511]
[1733995261878,2.1506,232.41,232.37,2.1509]
[1733995262178,2.1506,232.41,232.35,8.0666034]
[1733995262782,2.1503,232.44,232.37,8.0666034]
[1733995262982,2.1503,232.44,232.41,2.1506]
[1733995263188,1.9,232.45,232.41,2.1506]
[1733995263384,12.60242158,232.5,232.42,2.1504]
[1733995263592,1.9,232.51,232.4,1.9]
[1733995264387,2.1499,232.49,232.44,2.1502]
[1733995264587,1.9,232.51,232.44,2.1502]
[1733995264887,2.1498,232.49,232.4,1.9]
[1733995265087,1.9,232.51,232.4,1.9]
[1733995265692,4.0496,232.51,232.47,2.15]
[1733995266583,2.1498,232.49,232.4,1.4078]
[1733995266787,1.9,232.51,232.41,1.9]
[1733995267586,2.1501,232.47,232.43,2.1503]
[1733995269089,1.9,232.51,232.41,1.9]
[1733995269584,1.9,232.53,232.41,1.9]
[1733995269787,12.97211158,232.54,232.41,1.9]
[1733995270094,2.1496,232.52,232.47,2.1499]
[1733995270490,2.1495,232.53,232.49,2.1498]
[1733995270798,0.36969,232.54,232.41,14.50242158]
[1733995271093,0.36969,232.54,232.47,2.15]
[1733995271094,2.51909,232.54,232.47,2.15]
[1733995271293,2.51909,232.54,232.46,1.9]
[1733995271690,2.51909,232.54,232.49,2.1497]
[1733995272091,0.36969,232.54,232.46,1.9]
[1733995273689,0.36969,232.54,232.51,2.1496]
[1733995273993,2.1491,232.58,232.47,12.60242158]
[1733995274195,1.9,232.59,232.52,2.1495]
[1733995275096,1.9,232.59,232.51,2.1496]
[1733995275497,1.9,232.59,232.48,1.3038]
[1733995275695,2.1491,232.58,232.49,1.3824]
[1733995276096,2.1489,232.59,232.49,2.7718]
[1733995276798,2.1489,232.59,232.5,12.60242158]
[1733995276994,2.1489,232.59,232.51,1.9]
[1733995277202,2.1488,232.6,232.51,1.9]
[1733995277699,2.1488,232.6,232.52,1.9]
[1733995278300,2.1488,232.6,232.56,2.1492]
[1733995278799,2.1488,232.6,232.52,1.9]
[1733995279000,2.1488,232.6,232.55,2.1492]
[1733995279192,2.1488,232.6,232.52,1.9]
[1733995279701,2.1488,232.6,232.55,2.1492]
[1733995282194,12.60242158,232.65,232.52,1.9]
[1733995282394,3.05946,232.66,232.52,1.9]
[1733995282395,2.1487,232.62,232.53,12.60242158]
[1733995282796,2.1487,232.62,232.58,2.149]
[1733995283001,2.1487,232.62,232.53,12.60242158]
[1733995283197,2.1486,232.63,232.53,12.60242158]
[1733995283401,0.32496,232.66,232.53,12.60242158]
[1733995283597,0.32496,232.66,232.56,12.60242158]
[1733995283800,0.32496,232.66,232.59,12.60242158]
[1733995284109,0.32496,232.66,232.64,2.1484]
[1733995284498,0.32496,232.66,232.59,14.50242158]
[1733995285192,0.32496,232.66,232.61,2.1487]
[1733995285391,0.32496,232.66,232.59,14.50242158]
[1733995285794,0.32496,232.66,232.63,2.1485]
[1733995286699,0.32496,232.66,232.64,2.1484]
[1733995287096,0.32496,232.66,232.59,14.50242158]
[1733995287902,0.32496,232.66,232.65,2.1484]
[1733995290499,0.32496,232.66,232.59,14.50242158]
[1733995291300,2.47326,232.66,232.61,2.1487]
[1733995291501,0.32496,232.66,232.58,1.3287]
[1733995291799,0.32496,232.66,232.58,3.2287]
[1733995292807,2.47326,232.66,232.62,2.1486]
[1733995293309,2.47326,232.66,232.62,10.19863481]
[1733995294102,2.1484,232.65,232.62,8.05003481]
[1733995294908,2.47326,232.66,232.62,10.19863481]
[1733995295808,2.1483,232.66,232.62,10.19863481]
[1733995297107,2.1482,232.67,232.63,2.1485]
[1733995297304,1.9,232.72,232.64,8.05003481]
[1733995297508,2.14859696,232.71,232.64,8.05003481]
[1733995298008,4.29649696,232.71,232.67,2.1482]
[1733995298215,4.29649696,232.71,232.66,8.05003481]
[1733995299006,4.29649696,232.71,232.65,8.05003481]
[1733995299007,2.148,232.69,232.65,8.05003481]
[1733995299605,2.148,232.69,232.66,2.1482]
[1733995301705,2.14859696,232.71,232.67,8.05003481]
[1733995301906,2.14859696,232.71,232.69,8.05003481]
[1733995302407,2.14859696,232.71,232.7,2.1479]
[1733995302814,2.14859696,232.71,232.69,10.19803481]
[1733995303215,2.14859696,232.71,232.65,1.3825]
[1733995303409,2.14859696,232.71,232.66,8.05003481]
[1733995303611,4.29649696,232.71,232.67,2.1481]
[1733995303811,2.14859696,232.71,232.67,2.1481]
[1733995304312,2.14859696,232.71,232.66,8.05003481]
[1733995304616,2.1479,232.7,232.66,10.19823481]
[1733995305529,2.1481,232.69,232.65,2.1483]
[1733995305713,2.14859696,232.71,232.65,2.1483]
[1733995307510,2.148,232.69,232.65,2.1483]
[1733995308714,2.14859696,232.71,232.63,2.1485]